[Event "IV Estrellas 2022"]
[Site "La Palma"]
[Date "2022.08.09"]
[Round "5.15"]
[White "Santos Ramos, Carlos"]
[Black "Miranda Herrera, Miguel"]
[Result "0-1"]
[ECO "A00"]
[WhiteElo "1855"]
[BlackElo "1904"]
[Annotator "RC"]
[PlyCount "126"]
[EventDate "2022.08.06"]
[EventType "swiss"]
[EventCountry "ESP"]
[SourceTitle "playchess.com"]
[Source "ChessBase"]
[SourceQuality "1"]
[TimeControl "5400+30"]

1. d3 {[%emt 0:00:05]} e5 {[%emt 0:01:37]} 2. g3 {[%emt 0:00:10]} f5 {[%emt 0:00:39]} 3. Bg2 {[%emt 0:00:08]} Nf6 {[%emt 0:00:09]} 4. Bg5 {[%emt 0:00:45]} h6 {[%emt 0:01:38]} 5. Bxf6 {[%emt 0:00:05]} Qxf6 {[%emt 0:00:04]} 6. e4 {[%emt 0:01:24]} fxe4 {[%emt 0:07:38]} 7. Bxe4 {[%emt 0:00:13]} Bb4+ {[%emt 0:00:03]} 8. c3 {[%emt 0:00:08]} O-O {[%emt 0:03:15]} 9. Qe2 {[%emt 0:08:24]} Bc5 {[%emt 0:02:01]} 10. Nf3 {[%emt 0:00:21]} c6 {[%emt 0:12:37]} 11. d4 {[%emt 0:12:48]} exd4 {[%emt 0:02:06]} 12. Nxd4 {[%emt 0:09:34]} d5 {[%emt 0:03:38]} 13. Bg2 {[%emt 0:01:07]} Bg4 {[%emt 0:06:55]} 14. f3 {[%emt 0:01:52]} Nd7 {[%emt 0:04:16]} 15. O-O {[%emt 0:00:13]} Bxd4+ {[%emt 0:01:35]} 16. cxd4 {[%emt 0:00:19]} Qxd4+ {[%emt 0:00:05]} 17. Qf2 {[%emt 0:00:27]} Qxf2+ {[%emt 0:00:26]} 18. Rxf2 {[%emt 0:00:10]} Bf5 {[%emt 0:00:31]} 19. Nd2 {[%emt 0:02:17]} Rae8 {[%emt 0:00:44]} 20. g4 {[%emt 0:03:18]} Bd3 {[%emt 0:01:56]} 21. Bf1 {[%emt 0:00:11]} Bxf1 {[%emt 0:00:04]} 22. Raxf1 {[%emt 0:00:29]} Nc5 {[%emt 0:01:02]} 23. f4 {[%emt 0:01:19]} Re7 {[%emt 0:01:45]} 24. f5 {[%emt 0:02:42]} Nd3 {[%emt 0:01:39]} 25. Rg2 {[%emt 0:02:02]} Nxb2 {[%emt 0:02:12]} 26. Nf3 {[%emt 0:00:14]} Nc4 {[%emt 0:00:34]} 27. Nh4 {[%emt 0:01:43]} Rfe8 {[%emt 0:03:06]} 28. f6 {[%emt 0:03:00]} gxf6 {[%emt 0:00:05]} 29. Rxf6 {[%emt 0:00:39]} Re1+ {[%emt 0:01:13]} 30. Kf2 {[%emt 0:00:03]} R1e6 {[%emt 0:02:52]} 31. Rxe6 {[%emt 0:03:33]} Rxe6 {[%emt 0:00:07]} 32. Nf5 {[%emt 0:00:04]} c5 {[%emt 0:02:02]} 33. Rg3 {[%emt 0:01:31]} d4 {[%emt 0:00:48]} 34. Rh3 {[%emt 0:00:45]} Ne5 {[%emt 0:01:12]} 35. Kg3 {[%emt 0:01:03]} d3 {[%emt 0:10:17]} 36. Nxh6+ {[%emt 0:00:31]} Rxh6 {[%emt 0:00:46]} 37. Rxh6 {[%emt 0:00:05]} c4 {[%emt 0:00:09]} 38. Rd6 {[%emt 0:06:45]} c3 {[%emt 0:27:44]} 39. Kf4 {[%emt 0:00:47]} c2 {[%emt 0:00:00]} 40. Kxe5 {[%emt 0:02:10]} c1=Q {[%emt 0:00:00]} 41. Rxd3 {[%emt 0:00:16]} Qg5+ {[%emt 0:00:00]} 42. Kd4 {[%emt 0:03:00]} Qxg4+ {[%emt 0:00:00]} 43. Kc3 {[%emt 0:00:07]} Qe2 {[%emt 0:00:00]} 44. Rd2 {[%emt 0:01:07]} Qe1 {[%emt 0:00:00]} 45. Kc2 {[%emt 0:00:39]} Kf7 {[%emt 0:00:00]} 46. Kd3 {[%emt 0:00:18]} Kf6 {[%emt 0:00:00]} 47. Re2 {[%emt 0:01:48]} Qb1+ {[%emt 0:00:00]} 48. Ke3 {[%emt 0:00:08]} Kf5 {[%emt 0:00:00]} 49. Kf2 {[%emt 0:01:01]} Kf4 {[%emt 0:00:00]} 50. Kg2 {[%emt 0:01:46]} Qg6+ {[%emt 0:00:00]} 51. Kf2 {[%emt 0:00:05]} Qh5 {[%emt 0:00:00]} 52. Ke1 {[%emt 0:01:48]} Kf3 {[%emt 0:00:00]} 53. Rf2+ {[%emt 0:02:20]} Ke3 {[%emt 0:00:00]} 54. Kf1 {[%emt 0:00:18]} Qg4 {[%emt 0:00:00]} 55. a3 {[%emt 0:00:49]} b5 {[%emt 0:00:00]} 56. Rb2 {[%emt 0:04:58]} Qc4+ {[%emt 0:00:00]} 57. Kg2 {[%emt 0:00:14]} Qg8+ {[%emt 0:00:00]} 58. Kf1 {[%emt 0:01:03]} Qf8+ {[%emt 0:00:00]} 59. Ke1 {[%emt 0:00:12]} Qxa3 {[%emt 0:00:00]} 60. Re2+ {[%emt 0:00:14]} Kd3 {[%emt 0:00:00]} 61. Rd2+ {[%emt 0:00:19]} Kc3 {[%emt 0:00:00]} 62. Re2 {[%emt 0:05:55]} b4 {[%emt 0:00:00]} 63. Re3+ {[%emt 0:03:17]} Kc2 {[%emt 0:00:00]} 0-1

[Event "IV Estrellas 2022"]
[Site "La Palma"]
[Date "2022.08.09"]
[Round "5.16"]
[White "Marrero Rodriguez, Jorge"]
[Black "Martin Rodriguez, Jose Carlos"]
[Result "1-0"]
[ECO "B07"]
[WhiteElo "1941"]
[BlackElo "1804"]
[Annotator "TA"]
[PlyCount "59"]
[EventDate "2022.08.06"]
[EventType "swiss"]
[EventCountry "ESP"]
[SourceTitle "playchess.com"]
[Source "ChessBase"]
[SourceQuality "1"]
[TimeControl "5400+30"]

{[%evp 9,59,0,75,44,87,87,87,87,87,87,187,182,187,189,262,247,231,226,226,182,246,230,360,365,354,351,407,427,395,415,406,404,501,497,693,529,566,562,552,545,512,470,475,456,435,425,563,563,561,543,435,287]} 1. e4 {[%emt 0:00:32]} d6 {[%emt 0:00:25]} 2. d4 {[%emt 0:00:06]} Nf6 {[%emt 0:00:21]} 3. Nc3 {[%emt 0:00:04]} g6 {[%emt 0:00:15]} 4. Bc4 {[%emt 0:00:05]} Bg7 {[%emt 0:00:04]} 5. Qe2 {[%emt 0:00:10]} e5 {[%emt 0:00:07]} (5... Nc6 $11 {remains equal.}) 6. Nf3 {[%emt 0:00:11] B07: Pirc Defence: Miscellaneous Systems.} Bg4 {[%emt 0:00:52]} 7. dxe5 {[%emt 0:04:26] [#] White is more active.} Bxf3 $146 {[%emt 0:00:16][%mdl 64] Remove Defender} ({Predecessor:} 7... dxe5 8. Bxf7+ Kf8 9. Bb3 Nc6 10. Be3 Nd4 11. Nxd4 exd4 12. Qc4 Qe7 13. Bxd4 b6 14. O-O c5 15. Bxf6 Qxf6 16. e5 Qe7 17. Qxg4 {1-0 (17) Ingvason,J (2175)-Finnsson,J (1761) Reykjavik 2019}) 8. Qxf3 {White is better.} ({Don't take} 8. gxf3 dxe5 9. Be3 O-O $14) 8... dxe5 {[%emt 0:00:17]} 9. Nd5 {[%emt 0:01:01] aiming for Bg5.} c6 {[%emt 0:00:07] [#]} (9... Nbd7 $16 {was necessary.}) 10. Bh6 $1 $18 {[%emt 0:03:01][%mdl 512]} O-O {[%emt 0:01:39]} (10... Bxh6 $2 11. Nxf6+ Kf8 12. Ng4 $18) 11. Nxf6+ {[%emt 0:00:08]} Bxf6 {[%emt 0:00:28]} (11... Qxf6 {is a better defense.} 12. Qxf6 Bxf6 13. Bxf8 Kxf8) 12. Bxf8 {[%emt 0:00:22]} Kxf8 {[%emt 0:00:02]} 13. O-O {[%emt 0:00:24] Hoping for Rfd1.} Kg7 {[%emt 0:00:29]} 14. Rad1 {[%emt 0:00:36]} Qf8 {[%emt 0:01:13]} (14... Qe7 $142 15. Rd3 b5) 15. a4 {[%emt 0:01:29][%cal Ba2a4,Ba4b5,Bb5c6][%mdl 32] And now Qb3 would win.} Qc5 {[%emt 0:00:46]} (15... b6 $142 16. Qb3 Qe7) 16. Qb3 {[%emt 0:00:12]} Qe7 {[%emt 0:00:32]} 17. Rd3 {[%emt 0:02:44]} b5 {[%emt 0:00:50]} 18. axb5 {[%emt 0:00:10]} Nd7 {[%emt 0:00:01] [#]} 19. Rxd7 {[%emt 0:05:16]} Qxd7 {[%emt 0:00:06]} 20. bxc6 {[%emt 0:00:05]} Qc7 {[%emt 0:01:50]} 21. Qb7 {[%emt 0:00:08] White is clearly winning.} Rc8 {[%emt 0:01:54]} 22. Ba6 {[%emt 0:01:48]} Qxb7 {[%emt 0:00:07]} 23. Bxb7 {[%emt 0:00:04][%mdl 4096] Endgame KRB-KRB} Rc7 {[%emt 0:00:45]} 24. Ra1 {[%emt 0:00:06]} Be7 {[%emt 0:00:24]} 25. c3 {[%emt 0:01:35]} Bc5 {[%emt 0:00:15]} 26. b4 {[%emt 0:00:07]} Bb6 {[%emt 0:00:01]} 27. Kf1 {[%emt 0:01:02]} Kf6 {[%emt 0:00:10]} 28. Ke2 {[%emt 0:00:28]} Ke6 {[%emt 0:00:12]} 29. Ra6 {[%emt 0:00:22]} f5 {[%emt 0:00:09]} 30. exf5+ {[%emt 0:00:18] Black got outplayed after the opening.  Weighted Error Value: White=0.13 (very precise) /Black=0.51} 1-0

[Event "IV Estrellas 2022"]
[Site "La Palma"]
[Date "2022.08.09"]
[Round "5.17"]
[White "Pleschke, Julius Jonas"]
[Black "Haertl, Siegfried"]
[Result "1-0"]
[ECO "B13"]
[WhiteElo "1685"]
[BlackElo "1924"]
[Annotator "TA"]
[PlyCount "95"]
[EventDate "2022.08.06"]
[EventType "swiss"]
[EventCountry "ESP"]
[SourceTitle "playchess.com"]
[Source "ChessBase"]
[SourceQuality "1"]
[TimeControl "5400+30"]

{[%evp 20,95,62,54,240,254,345,70,61,41,41,45,42,42,45,31,30,33,42,34,39,27,40,25,35,36,58,43,48,31,40,20,24,27,56,22,50,33,59,56,66,23,43,5,36,35,66,69,114,96,258,253,215,154,170,161,614,647,613,588,857,793,988,985,748,632,577,57,57,57,1366,1381,6102,6102,6087,6087,3128,2117]} 1. e4 {[%emt 0:00:03]} c6 {[%emt 0:00:09]} 2. d4 {[%emt 0:00:07]} d5 {[%emt 0:00:02]} 3. exd5 {[%emt 0:00:13]} cxd5 {[%emt 0:01:24]} 4. Bd3 {[%emt 0:00:03]} Nc6 {[%emt 0:00:13]} 5. c3 {[%emt 0:00:07]} Nf6 {[%emt 0:00:20]} 6. Bf4 {[%emt 0:00:10]} e6 {[%emt 0:01:29]} 7. Nd2 {[%emt 0:00:44]} Bd6 {[%emt 0:00:17]} 8. Bxd6 {[%emt 0:00:08]} Qxd6 {[%emt 0:00:03]} 9. Ngf3 {[%emt 0:00:10]} O-O {[%emt 0:00:47]} 10. O-O {[%emt 0:00:20]} Re8 {[%emt 0:02:46]} 11. Re1 {[%emt 0:01:58]} e5 $2 {[%emt 0:00:33] B13: Caro-Kann: Exchange Variation and Panov-Botvinnik Attack.} (11... Nd7 $14) 12. dxe5 $1 $18 {[%emt 0:02:35]} Nxe5 {[%emt 0:00:09]} 13. Nxe5 {[%emt 0:01:06]} ({Only move:} 13. Rxe5 $18 Rxe5 {[#]} 14. Nc4 $1 {[%mdl 512]} (14. Nxe5 Qxe5 15. Nf3 Qd6 $14) 14... dxc4 15. Bxh7+ $1 {[%mdl 512]} Nxh7 16. Qxd6) 13... Rxe5 $14 {[%emt 0:00:08] White is slightly better.} 14. h3 {[%emt 0:15:12]} Bd7 {[%emt 0:02:34]} 15. Rxe5 {[%emt 0:00:39]} Qxe5 {[%emt 0:00:23]} 16. Nf3 {[%emt 0:00:24]} Qf4 {[%emt 0:02:27]} 17. Qd2 {[%emt 0:04:54]} Qxd2 {[%emt 0:02:30]} 18. Nxd2 {[%emt 0:00:12][%cal Bf3d2,Bd2b3,Bb3d4][%mdl 32]} Re8 {[%emt 0:02:00]} 19. Nb3 {[%emt 0:02:22]} Kf8 {[%emt 0:01:59] [#]} 20. Nd4 $146 {[%emt 0:00:22]} ({Predecessor:} 20. Nc5 Bc6 21. Nb3 h6 22. f3 Re3 23. Bf1 b6 24. Nd4 Bd7 25. Kf2 Re7 26. b4 {½-½ (64) Pajnhart,T (1860)-Drobnic,J (1779) Ljubljana 2012}) 20... g6 {[%emt 0:02:03]} 21. Rd1 {[%emt 0:09:27]} a6 {[%emt 0:02:25]} 22. Bc2 {[%emt 0:01:43]} Re5 {[%emt 0:01:48]} 23. Bb3 {[%emt 0:01:01]} Bc6 {[%emt 0:00:50]} 24. Kh2 {[%emt 0:19:15]} h5 {[%emt 0:03:52]} 25. g3 {[%emt 0:04:01]} Ne4 {[%emt 0:06:58]} 26. Kg2 {[%emt 0:03:20]} Nf6 {[%emt 0:01:32]} 27. a4 {[%emt 0:01:35]} Re4 {[%emt 0:03:35]} 28. a5 {[%emt 0:01:26]} Re5 {[%emt 0:02:41]} 29. Bc2 {[%emt 0:02:02]} Re7 {[%emt 0:02:32]} 30. Nxc6 {[%emt 0:02:18]} bxc6 {[%emt 0:00:03][%mdl 4096] Endgame KRB-KRN} 31. Bd3 {[%emt 0:00:07] Inhibits Re2.} Ra7 {[%emt 0:02:04]} 32. b4 {[%emt 0:00:11]} Nd7 {[%emt 0:01:21]} 33. Re1 {[%emt 0:03:43]} Nb8 {[%emt 0:00:31]} 34. f4 {[%emt 0:00:54] White is more active.} Re7 $2 {[%emt 0:00:21]} (34... Nd7 $16) 35. Rxe7 $18 {[%emt 0:00:54]} Kxe7 {[%emt 0:00:06] KB-KN} 36. Kf3 {[%emt 0:00:04]} Kd6 {[%emt 0:00:07]} 37. Ke3 {[%emt 0:00:35] Black must now prevent Kd4.} Ke6 $2 {[%emt 0:02:33]} (37... c5 38. f5 g5) 38. Kd4 {[%emt 0:00:31]} Kd6 {[%emt 0:00:10]} 39. c4 {[%emt 0:00:48]} h4 {[%emt 0:11:12]} 40. g4 {[%emt 0:02:49]} dxc4 {[%emt 0:00:42]} 41. Bxc4 {[%emt 0:01:28]} f6 {[%emt 0:00:10]} 42. Bd3 {[%emt 0:00:43]} g5 {[%emt 0:00:17]} 43. f5 {[%emt 0:00:46]} (43. fxg5 $18 fxg5 44. Bc4) 43... Kc7 $14 {[%emt 0:00:50]} 44. Ke4 {[%emt 0:02:11]} c5 $2 {[%emt 0:08:15][%mdl 8192]} (44... Kd6 $14) 45. bxc5 $18 {[%emt 0:00:33][%cal Bb4c5,Bc5c6][%mdl 32] White is clearly winning.} Nc6 {[%emt 0:00:06]} 46. Bxa6 {[%emt 0:00:23]} Nxa5 {[%emt 0:00:08]} 47. Kd5 {[%emt 0:00:50]} Kd7 {[%emt 0:00:06]} 48. c6+ {[%emt 0:00:23] Weighted Error Value: White=0.49/Black=0.66} 1-0

[Event "IV Estrellas 2022"]
[Site "La Palma"]
[Date "2022.08.09"]
[Round "5.18"]
[White "Martin Ramos, Daniel"]
[Black "Carraminana Lopez, Luis Antonio"]
[Result "0-1"]
[ECO "C41"]
[WhiteElo "1582"]
[BlackElo "1910"]
[Annotator "RC"]
[PlyCount "44"]
[EventDate "2022.08.06"]
[EventType "swiss"]
[EventCountry "ESP"]
[SourceTitle "playchess.com"]
[Source "ChessBase"]
[SourceQuality "1"]
[TimeControl "5400+30"]

1. e4 {[%emt 0:00:04]} d6 {[%emt 0:00:33]} 2. d4 {[%emt 0:00:05]} Nf6 {[%emt 0:00:09]} 3. Nc3 {[%emt 0:00:06]} e5 {[%emt 0:00:07]} 4. Nf3 {[%emt 0:00:46]} Nbd7 {[%emt 0:00:08]} 5. Bc4 {[%emt 0:00:23]} Be7 {[%emt 0:00:57]} 6. h3 {[%emt 0:02:04]} c6 {[%emt 0:04:28]} 7. a4 {[%emt 0:00:08]} a5 {[%emt 0:00:06]} 8. O-O {[%emt 0:02:03]} O-O {[%emt 0:00:24]} 9. Re1 {[%emt 0:07:32]} Nb6 {[%emt 0:02:03]} 10. Ba2 {[%emt 0:00:19]} Nfd7 {[%emt 0:00:38]} 11. Be3 {[%emt 0:01:55]} exd4 {[%emt 0:00:34]} 12. Qxd4 {[%emt 0:01:31]} Nc5 {[%emt 0:05:20]} 13. Qd2 {[%emt 0:02:22]} Nbxa4 {[%emt 0:09:27]} 14. Nxa4 {[%emt 0:00:32]} Nxa4 {[%emt 0:00:30]} 15. Bxf7+ {[%emt 0:00:08]} Rxf7 {[%emt 0:00:07]} 16. Rxa4 {[%emt 0:00:06]} Rxf3 {[%emt 0:15:43]} 17. gxf3 {[%emt 0:01:04]} Bxh3 {[%emt 0:02:19]} 18. Kh2 {[%emt 0:02:15]} Be6 {[%emt 0:00:50]} 19. Rea1 {[%emt 0:04:56]} Qf8 {[%emt 0:03:14]} 20. Rxa5 {[%emt 0:02:33]} Rxa5 {[%emt 0:00:09]} 21. Qxa5 {[%emt 0:04:01]} Qxf3 {[%emt 0:00:15]} 22. Rg1 {[%emt 0:02:40]} Qh3# {[%emt 0:53:29]} 0-1

[Event "IV Estrellas 2022"]
[Site "La Palma"]
[Date "2022.08.09"]
[Round "6.1"]
[White "Pulvett Marin, Daniel Eduardo"]
[Black "Baskin, Robert"]
[Result "0-1"]
[ECO "D52"]
[WhiteElo "2523"]
[BlackElo "2408"]
[Annotator "TA"]
[PlyCount "48"]
[EventDate "2022.08.06"]
[EventType "swiss"]
[EventCountry "ESP"]
[SourceTitle "playchess.com"]
[Source "ChessBase"]
[SourceQuality "1"]
[TimeControl "5400+30"]

{[%evp 20,48,37,33,34,34,36,39,41,35,33,0,32,20,8,9,16,-2,-4,-208,-218,-208,-201,-199,-191,-439,-440,-441,-437,-455,-435]} 1. d4 {[%emt 1:31:00]} d5 {[%emt 1:31:00]} 2. c4 {[%emt 0:00:30]} c6 {[%emt 0:00:30]} 3. Nf3 {[%emt 0:00:30]} Nf6 {[%emt 0:00:30]} 4. Nc3 {[%emt 0:00:30]} e6 {[%emt 0:00:30]} 5. Bg5 {[%emt 0:00:30]} Nbd7 {[%emt 0:00:30]} 6. e3 {[%emt 0:00:30]} Qa5 {[%emt 0:00:30]} 7. Nd2 {[%emt 0:00:30]} dxc4 {[%emt 0:00:30]} 8. Bxf6 {[%emt 0:00:30]} Nxf6 {[%emt 0:00:30]} 9. Nxc4 {[%emt 0:00:30]} Qc7 {[%emt 0:00:30]} 10. Rc1 {[%emt 0:00:30]} Be7 {[%emt 0:00:30]} 11. g3 {[%emt 0:00:30]} O-O {[%emt 0:00:30] 11...Nd5 is vanishing. D52: Queen's Gambit Declined: Cambridge Springs Variation.} 12. Bg2 {[%emt 0:00:30]} c5 {[%emt 0:00:30] [#]} 13. Nb5 $146 {[%emt 0:00:30] Pair of Knights!} ({Predecessor:} 13. O-O cxd4 14. Nb5 Qc5 15. Nxd4 Rd8 16. Qe2 e5 17. b4 Qc7 18. Nb5 Qb8 19. Qb2 {½-½ (30) Khademalsharieh,S (2481)-Naiditsch,A (2681) Changsha 2019}) 13... Qb8 {[%emt 0:00:30] White is slightly better.} 14. dxc5 {[%emt 0:00:30]} Bxc5 {[%emt 0:00:30]} 15. Qb3 {[%emt 0:00:30] Inhibits Bb4+.} a6 {[%emt 0:00:30]} 16. Nc3 {[%emt 0:00:30]} b5 {[%emt 0:00:30] Prevents Na4.} 17. Na5 {[%emt 0:00:30]} Bd7 $1 {[%emt 0:00:30]} 18. O-O {[%emt 0:00:30] [#] Strongly threatening Ne4.} Ra7 {[%emt 0:00:30] ...Qb6 is the strong threat.} 19. Rfd1 $2 {[%emt 0:00:30] This move loses the game for White.} (19. Ne4 $11 {and White has nothing to worry.} Nxe4 20. Bxe4) 19... Qb6 $19 {[%emt 0:00:30]} 20. Ne4 {[%emt 0:00:30]} Nxe4 {[%emt 0:00:30]} 21. Bxe4 {[%emt 0:00:30][%cal Oa5b7] [#] Black must now prevent Nb7!} Rc8 $1 {[%emt 0:00:30]} 22. Nc6 {[%emt 0:00:30]} ({Reject} 22. Qc3 b4 23. Bxh7+ Kxh7 $19) (22. Rxc5 Rxc5 23. Qb4) 22... Bxc6 {[%emt 0:00:30] Black is clearly winning.} 23. Bxc6 {[%emt 0:00:30]} Rxc6 {[%emt 0:00:30]} ({Don't blunder} 23... Qxc6 $2 24. Qd3 Qe8 25. Rc2 $19) 24. Qd3 {[%emt 0:00:30]} Bf8 {[%emt 0:00:30] Weighted Error Value: White=0.54/Black=0.03 (flawless)} 0-1

[Event "IV Estrellas 2022"]
[Site "La Palma"]
[Date "2022.08.09"]
[Round "6.2"]
[White "Pap, Misa"]
[Black "Kurajica, Bojan"]
[Result "1-0"]
[ECO "B22"]
[WhiteElo "2375"]
[BlackElo "2525"]
[Annotator "TA"]
[PlyCount "81"]
[EventDate "2022.08.06"]
[EventType "swiss"]
[EventCountry "ESP"]
[SourceTitle "playchess.com"]
[Source "ChessBase"]
[SourceQuality "1"]
[TimeControl "5400+30"]

{[%evp 9,81,20,37,29,45,29,64,60,60,60,62,64,108,114,132,140,132,142,175,102,102,102,102,102,104,102,104,19,31,0,0,0,42,58,61,56,45,52,45,49,56,54,52,31,44,17,13,18,10,10,16,18,27,22,14,16,76,67,76,66,107,104,180,181,231,175,279,279,266,259,782,758,830,800]} 1. e4 {[%emt 0:01:06]} c5 {[%emt 0:00:05]} 2. c3 {[%emt 0:00:37]} d5 {[%emt 0:00:39]} 3. exd5 {[%emt 0:00:08]} Qxd5 {[%emt 0:00:04]} 4. Nf3 {[%emt 0:00:11]} Bf5 {[%emt 0:07:22]} 5. d4 {[%emt 0:04:45]} cxd4 {[%emt 0:05:07]} 6. Nxd4 {[%emt 0:05:04] B22: Sicilian: 2 c3.} Bd7 {[%emt 0:16:31] [#]} 7. Na3 $146 {[%emt 0:16:59][%cal Bb1a3,Ba3c4,Bc4b6][%mdl 32]} ({Predecessor:} 7. c4 Qe5+ 8. Be3 Nc6 9. Nc3 e6 10. Nf3 Qb8 11. Qd2 Nf6 12. O-O-O Be7 13. Bf4 {0-1 (39) Hricko,M (1967)-Bachorik,O (2138) Czech Republic 2015}) 7... Nc6 {[%emt 0:11:13]} 8. Be3 {[%emt 0:01:40][%cal Bc1e3,Be3d4,Bd4e5,Be5c7][%mdl 32] White is slightly better.} Nxd4 {[%emt 0:07:51]} 9. Qxd4 {[%emt 0:01:17]} Qxd4 {[%emt 0:00:32]} 10. Bxd4 {[%emt 0:00:09]} ({Of course not} 10. cxd4 e6 $11) 10... a6 {[%emt 0:00:08] Against Nb5} 11. Nc4 {[%emt 0:00:21]} e6 {[%emt 0:07:37]} 12. Nb6 {[%emt 0:04:00]} Rd8 {[%emt 0:00:11]} 13. Be5 $1 {[%emt 0:08:12]} Ke7 {[%emt 0:03:18]} 14. O-O-O {[%emt 0:07:32]} (14. Bc7 $18) 14... Bc6 $16 {[%emt 0:00:47]} 15. Be2 {[%emt 0:00:40] White is much more active. The black rooks are badly placed.} Nf6 {[%emt 0:06:03]} 16. Bc7 $1 {[%emt 0:04:41]} Rxd1+ {[%emt 0:00:35]} 17. Rxd1 {[%emt 0:00:03] Threatening mate with Nc8+.} Nd5 {[%emt 0:01:10] [#]} 18. Nxd5+ {[%emt 0:00:14]} (18. Bf3 $1 $16) 18... Bxd5 $11 {[%emt 0:06:22]} 19. c4 {[%emt 0:00:10]} Bxg2 {[%emt 0:04:02]} 20. f3 $1 {[%emt 0:00:20]} e5 {[%emt 0:01:07]} 21. Bxe5 {[%emt 0:06:36]} Ke6 {[%emt 0:01:12]} 22. f4 {[%emt 0:02:55]} f6 {[%emt 0:03:23]} 23. Bg4+ {[%emt 0:00:14]} Kf7 {[%emt 0:01:22]} 24. Rd7+ {[%emt 0:00:51]} Be7 $1 {[%emt 0:05:03]} 25. Bd6 {[%emt 0:01:02]} Re8 {[%emt 0:00:26]} 26. c5 {[%emt 0:06:25]} Kf8 {[%emt 0:02:09]} 27. Bf5 {[%emt 0:04:43]} Bxd6 {[%emt 0:02:27]} 28. Rxd6 {[%emt 0:02:21][%mdl 4096] Endgame KRB-KRB} Re1+ {[%emt 0:01:53]} 29. Kd2 {[%emt 0:01:07]} Rf1 {[%emt 0:01:10]} 30. Rd8+ {[%emt 0:02:46]} Ke7 {[%emt 0:00:27]} 31. Rd7+ {[%emt 0:00:05]} Kf8 {[%emt 0:00:07]} 32. Be6 {[%emt 0:01:00]} g6 {[%emt 0:01:48]} (32... Bc6 $11 33. Rf7+ Ke8) 33. Rf7+ $16 {[%emt 0:02:33]} Ke8 {[%emt 0:00:02]} 34. Rxh7 {[%emt 0:00:13]} Rxf4 {[%emt 0:00:20]} 35. Bf7+ {[%emt 0:02:52]} Kd8 {[%emt 0:00:10]} (35... Kf8 $16) 36. Bxg6 $18 {[%emt 0:00:12]} Rf2+ {[%emt 0:00:04]} (36... Bc6 {might work better.} 37. h4 Rf2+ 38. Kc3 Rf3+ 39. Kd4 Rf4+ 40. Ke3 Rf3+ 41. Ke2 f5) 37. Kc3 {[%emt 0:00:26]} f5 {[%emt 0:02:21]} (37... Bc6 {was necessary.} 38. h4 Rf3+ 39. Kc4 Rf4+ 40. Kd3 Rf3+ 41. Kd4 Rf4+ 42. Kc3 Rf3+ 43. Kd4 Rf4+ 44. Ke3 Rf3+ 45. Kd4) 38. h4 {[%emt 0:01:05][%cal Bh2h4,Bh4h5][%mdl 32] Black must now prevent h5.} f4 {[%emt 0:01:31]} 39. h5 {[%emt 0:00:09]} Rf3+ $2 {[%emt 0:00:13]} (39... Bd5 40. h6 Rh2 41. Rh8+ Ke7) 40. Kd4 {[%emt 0:00:19]} Rg3 {[%emt 0:00:39]} 41. Ke5 {[%emt 0:00:51] Weighted Error Value: White=0.10 (very precise) /Black=0.22 (precise)} 1-0

[Event "IV Estrellas 2022"]
[Site "La Palma"]
[Date "2022.08.09"]
[Round "6.3"]
[White "Del Rio De Angelis, Salvador G."]
[Black "Pierrot, Facundo"]
[Result "1/2-1/2"]
[ECO "D87"]
[WhiteElo "2442"]
[BlackElo "2371"]
[Annotator "RC"]
[PlyCount "25"]
[EventDate "2022.08.06"]
[EventType "swiss"]
[EventCountry "ESP"]
[SourceTitle "playchess.com"]
[Source "ChessBase"]
[SourceQuality "1"]
[TimeControl "5400+30"]

1. d4 {[%emt 0:00:08]} Nf6 {[%emt 0:00:11]} 2. c4 {[%emt 0:00:08]} g6 {[%emt 0:00:06]} 3. Nc3 {[%emt 0:00:21]} d5 {[%emt 0:00:07]} 4. cxd5 {[%emt 0:00:06]} Nxd5 {[%emt 0:00:05]} 5. e4 {[%emt 0:00:05]} Nxc3 {[%emt 0:00:06]} 6. bxc3 {[%emt 0:00:06]} Bg7 {[%emt 0:00:04]} 7. Bc4 {[%emt 0:00:20]} c5 {[%emt 0:00:32]} 8. Ne2 {[%emt 0:00:15]} O-O {[%emt 0:00:27]} 9. d5 {[%emt 0:00:24]} e6 {[%emt 0:01:30]} 10. O-O {[%emt 0:02:00]} exd5 {[%emt 0:01:08]} 11. Bxd5 {[%emt 0:02:45]} Nd7 {[%emt 0:01:19]} 12. Rb1 {[%emt 0:03:17]} Nf6 {[%emt 0:01:23]} 13. Bg5 {[%emt 0:01:27]} 1/2-1/2